fUST/lending_fUST_20251207
["ID","MTS","AMOUNT","RATE_DAILY","PERIOD"]
[396569312,1765055441604,-1095.02,8.219e-05,2]
[396569314,1765055441613,-500.0,8.219e-05,2]
[396569316,1765055441623,-1467.3,8.219e-05,2]
[396569317,1765055441632,-594.19,8.219e-05,2]
[396569319,1765055441641,-500.0,8.219e-05,2]
[396569321,1765055441651,-996.41,8.219e-05,2]
[396569323,1765055441660,-500.0,8.219e-05,2]
[396569326,1765055441669,-1040.86,8.219e-05,2]
[396569328,1765055441679,-500.0,8.219e-05,2]
[396569329,1765055441688,-500.0,8.219e-05,2]
[396569331,1765055441697,-500.0,8.219e-05,2]
[396569334,1765055441707,-500.0,8.219e-05,2]
[396569335,1765055441716,-1455.19,8.219e-05,2]
[396569338,1765055441726,-500.0,8.219e-05,2]
[396569339,1765055441735,-500.0,8.219e-05,2]
[396569341,1765055441745,-500.0,8.219e-05,2]
[396569344,1765055441754,-578.17,8.219e-05,2]
[396569345,1765055441764,-500.0,8.219e-05,2]
[396569347,1765055441774,-1090.1,8.219e-05,2]
[396569349,1765055441783,-1244.61,8.219e-05,2]
[396569351,1765055441792,-813.76,8.219e-05,2]
[396569353,1765055441802,-500.0,8.219e-05,2]
[396569355,1765055441812,-500.0,8.219e-05,2]
[396569357,1765055441821,-500.0,8.219e-05,2]
[396569359,1765055441830,-500.0,8.219e-05,2]
[396569361,1765055441839,-1158.75,8.219e-05,2]
[396569363,1765055441849,-942.22,8.219e-05,2]
[396569365,1765055441858,-760.34,8.219e-05,2]
[396569367,1765055441867,-787.45,8.219e-05,2]
[396569369,1765055441876,-1318.53,8.219e-05,2]
[396569371,1765055441885,-550.79,8.219e-05,2]
[396569373,1765055441894,-500.0,8.219e-05,2]
[396569375,1765055441903,-500.0,8.219e-05,2]
[396569377,1765055441912,-500.0,8.219e-05,2]
[396569379,1765055441921,-572.68,8.219e-05,2]
[396569380,1765055441930,-500.0,8.219e-05,2]
[396569383,1765055441939,-500.0,8.219e-05,2]
[396569384,1765055441949,-690.25,8.219e-05,2]
[396569386,1765055441958,-500.0,8.219e-05,2]
[396569388,1765055441967,-500.0,8.219e-05,2]
[396569389,1765055441979,-500.0,8.219e-05,2]
[396569390,1765055441988,-500.0,8.219e-05,2]
[396569391,1765055441997,-2757.34,8.219e-05,2]
[396569392,1765055442006,-500.0,8.219e-05,2]
[396569393,1765055442015,-500.0,8.219e-05,2]
[396569394,1765055442025,-500.0,8.219e-05,2]
[396569395,1765055442034,-500.0,8.219e-05,2]
[396569396,1765055442044,-500.0,8.219e-05,2]
[396569397,1765055442053,-1976.96,8.219e-05,2]
[396569398,1765055442062,-500.0,8.219e-05,2]
[396569399,1765055442072,-500.0,8.219e-05,2]
[396569400,1765055442081,-500.0,8.219e-05,2]
[396569401,1765055442090,-2168.82,8.219e-05,2]
[396569402,1765055442100,-500.0,8.219e-05,2]
[396569403,1765055442109,-574.36,8.219e-05,2]
[396569404,1765055442118,-500.0,8.219e-05,2]
[396569405,1765055442128,-500.0,8.219e-05,2]
[396569406,1765055442137,-500.0,8.219e-05,2]
[396569407,1765055442146,-500.0,8.219e-05,2]
[396569408,1765055442155,-500.0,8.219e-05,2]
[396569409,1765055442165,-758.66,8.219e-05,2]
[396569410,1765055442175,-662.65,8.219e-05,2]
[396569412,1765055442184,-500.0,8.219e-05,2]
[396569413,1765055442193,-500.0,8.219e-05,2]
[396569414,1765055442203,-500.0,8.219e-05,2]
[396569415,1765055442213,-1785.87,8.219e-05,2]
[396569417,1765055442222,-500.0,8.219e-05,2]
[396569419,1765055442231,-500.0,8.219e-05,2]
[396569421,1765055442241,-500.05559623,8.219e-05,2]
[396569422,1765055442250,-500.0,8.219e-05,2]
[396569424,1765055442259,-500.0,8.219e-05,2]
[396569426,1765055442273,-500.0,8.219e-05,2]
[396569428,1765055442282,-591.0,8.219e-05,2]
[396569430,1765055442291,-465.63590687,8.219e-05,2]
[396569433,1765055442300,-500.0,8.219e-05,2]
[396569435,1765055442311,-500.0,8.219e-05,2]
[396569437,1765055442320,-1058.33,8.219e-05,2]
[396569439,1765055442329,-500.0,8.219e-05,2]
[396569441,1765055442339,-500.0,8.219e-05,2]
[396569443,1765055442348,-500.0,8.219e-05,2]
[396569445,1765055442358,-500.0,8.219e-05,2]
[396569447,1765055442368,-500.0,8.219e-05,2]
[396569449,1765055442377,-500.0,8.219e-05,2]
[396569451,1765055442387,-1822.34,8.219e-05,2]
[396569453,1765055442396,-563.83,8.219e-05,2]
[396569455,1765055442405,-500.0,8.219e-05,2]
[396569458,1765055442414,-500.0,8.219e-05,2]
[396569461,1765055442424,-500.0,8.219e-05,2]
[396569464,1765055442433,-598.73896813,8.219e-05,2]
[396569466,1765055442443,-500.0,8.219e-05,2]
[396569468,1765055442452,-500.0,8.219e-05,2]
[396569470,1765055442462,-500.0,8.219e-05,2]
[396569472,1765055442472,-500.0,8.219e-05,2]
[396569474,1765055442482,-500.0,8.219e-05,2]
[396569476,1765055442491,-1164.7,8.219e-05,2]
[396569478,1765055442500,-559.65,8.219e-05,2]
[396569480,1765055442509,-500.0,8.219e-05,2]
[396569482,1765055442519,-500.0,8.219e-05,2]
[396569484,1765055442529,-500.0,8.219e-05,2]
[396569486,1765055442538,-500.0,8.219e-05,2]
[396569488,1765055442547,-500.0,8.219e-05,2]
[396569490,1765055442557,-604.96559971,8.219e-05,2]
[396569492,1765055442567,-500.0,8.219e-05,2]
[396569494,1765055442576,-500.0,8.219e-05,2]
[396569496,1765055442586,-500.0,8.219e-05,2]
[396569498,1765055442596,-500.0,8.219e-05,2]
[396569500,1765055442606,-1518.54,8.219e-05,2]
[396569502,1765055442616,-500.0,8.219e-05,2]
[396569504,1765055442626,-500.0,8.219e-05,2]
[396569506,1765055442637,-500.0,8.219e-05,2]
[396569508,1765055442646,-500.0,8.219e-05,2]
[396569510,1765055442655,-526.67,8.219e-05,2]
[396569512,1765055442664,-500.0,8.219e-05,2]
[396569514,1765055442673,-500.0,8.219e-05,2]
[396569516,1765055442683,-500.0,8.219e-05,2]
[396569518,1765055442692,-500.0,8.219e-05,2]
[396569520,1765055442701,-500.0,8.219e-05,2]
[396569522,1765055442711,-500.0,8.219e-05,2]
[396569524,1765055442721,-500.0,8.219e-05,2]
[396569526,1765055442731,-594.8,8.219e-05,2]
[396569528,1765055442741,-500.0,8.219e-05,2]
[396569530,1765055442750,-500.0,8.219e-05,2]
[396569532,1765055442759,-500.0,8.219e-05,2]
[396569534,1765055442768,-500.0,8.219e-05,2]
[396569536,1765055442778,-500.0,8.219e-05,2]
[396569538,1765055442788,-500.0,8.219e-05,2]
[396569540,1765055442799,-425.66487058,8.219e-05,2]
[396569542,1765055442809,-776.49,8.219e-05,2]
[396569544,1765055442819,-608.97,8.219e-05,2]
[396569546,1765055442830,-500.0,8.219e-05,2]
[396569548,1765055442841,-1214.37,8.219e-05,2]
[396569550,1765055442850,-500.0,8.219e-05,2]
[396569552,1765055442860,-500.0,8.219e-05,2]
[396569554,1765055442870,-1336.74,8.219e-05,2]
[396569556,1765055442879,-500.0,8.219e-05,2]
[396569558,1765055442889,-500.0,8.219e-05,2]
[396569560,1765055442898,-500.0,8.219e-05,2]
[396569562,1765055442907,-592.85,8.219e-05,2]
[396569564,1765055442916,-500.0,8.219e-05,2]
[396569566,1765055442927,-500.0,8.219e-05,2]
[396569568,1765055442937,-2800.96,8.219e-05,2]
[396569570,1765055442947,-2465.94,8.219e-05,2]
[396569572,1765055442957,-500.0,8.219e-05,2]
[396569574,1765055442966,-500.0,8.219e-05,2]
[396569576,1765055442975,-500.0,8.219e-05,2]
[396569578,1765055442984,-500.0,8.219e-05,2]
[396569580,1765055442994,-2338.65,8.219e-05,2]
[396569582,1765055443004,-500.0,8.219e-05,2]
[396569584,1765055443013,-1180.5,8.219e-05,2]
[396569586,1765055443022,-500.0,8.219e-05,2]
[396569589,1765055443033,-500.0,8.219e-05,2]
[396569590,1765055443043,-500.0,8.219e-05,2]
[396569593,1765055443053,-500.0,8.219e-05,2]
[396569595,1765055443064,-974.77,8.219e-05,2]
[396569597,1765055443073,-500.0,8.219e-05,2]
[396569599,1765055443082,-500.0,8.219e-05,2]
[396569601,1765055443092,-557.63038115,8.219e-05,2]
[396569603,1765055443102,-847.22,8.219e-05,2]
[396569625,1765055443312,-500.0,8.219e-05,2]
[396569627,1765055443323,-500.0,8.219e-05,2]
[396569629,1765055443332,-882.71,8.219e-05,2]
[396569631,1765055443342,-500.0,8.219e-05,2]
[396569633,1765055443353,-1868.06,8.219e-05,2]
[396569635,1765055443363,-500.0,8.219e-05,2]
[396569638,1765055443372,-514.87,8.219e-05,2]
[396569640,1765055443382,-500.0,8.219e-05,2]
[396569642,1765055443391,-500.0,8.219e-05,2]
[396569643,1765055443401,-500.0,8.219e-05,2]
[396569645,1765055443410,-500.0,8.219e-05,2]
[396569647,1765055443419,-500.0,8.219e-05,2]
[396569649,1765055443429,-710.13,8.219e-05,2]
[396569651,1765055443439,-500.0,8.219e-05,2]
[396569653,1765055443448,-500.0,8.219e-05,2]
[396569655,1765055443457,-500.0,8.219e-05,2]
[396569657,1765055443467,-500.0,8.219e-05,2]
[396569659,1765055443476,-500.0,8.219e-05,2]
[396569661,1765055443485,-500.69036311,8.219e-05,2]
[396569663,1765055443494,-500.0,8.219e-05,2]
[396569665,1765055443503,-500.0,8.219e-05,2]
[396569667,1765055443513,-500.0,8.219e-05,2]
[396569669,1765055443522,-500.0,8.219e-05,2]
[396569671,1765055443532,-500.0,8.219e-05,2]
[396569673,1765055443542,-461.65995057,8.219e-05,2]
[396569675,1765055443552,-500.0,8.219e-05,2]
[396569678,1765055443562,-500.0,8.219e-05,2]
[396569680,1765055443571,-608.08,8.219e-05,2]
[396569682,1765055443581,-500.0,8.219e-05,2]
[396569684,1765055443590,-500.0,8.219e-05,2]
[396569686,1765055443600,-500.0,8.219e-05,2]
[396569688,1765055443609,-500.0,8.219e-05,2]
[396569690,1765055443618,-500.0,8.219e-05,2]
[396569692,1765055443629,-555.24048553,8.219e-05,2]
[396569694,1765055443638,-500.0,8.219e-05,2]
[396569696,1765055443647,-500.0,8.219e-05,2]
[396569698,1765055443656,-500.0,8.219e-05,2]
[396569700,1765055443665,-500.0,8.219e-05,2]
[396569702,1765055443674,-500.0,8.219e-05,2]
[396569704,1765055443683,-500.0,8.219e-05,2]
[396569706,1765055443692,-531.81,8.219e-05,2]
[396569708,1765055443703,-500.0,8.219e-05,2]
[396569710,1765055443712,-716.87,8.219e-05,2]
[396569712,1765055443722,-500.0,8.219e-05,2]
[396569714,1765055443730,-500.0,8.219e-05,2]
[396569716,1765055443739,-500.0,8.219e-05,2]
[396569718,1765055443748,-663.76,8.219e-05,2]
[396569720,1765055443757,-500.0,8.219e-05,2]
[396569722,1765055443767,-500.0,8.219e-05,2]
[396569723,1765055443776,-1219.81,8.219e-05,2]
[396569726,1765055443785,-1234.87,8.219e-05,2]
[396569728,1765055443795,-500.0,8.219e-05,2]
[396569730,1765055443804,-906.09,8.219e-05,2]
[396569732,1765055443814,-986.05,8.219e-05,2]
[396569733,1765055443823,-674.59,8.219e-05,2]
[396569735,1765055443832,-500.0,8.219e-05,2]
[396569738,1765055443843,-150.09,8.219e-05,2]
[396569740,1765055443852,-500.0,8.219e-05,2]
[396569742,1765055443861,-500.0,8.219e-05,2]
[396569744,1765055443871,-731.62,8.219e-05,2]
[396569746,1765055443880,-1237.32,8.219e-05,2]
[396569748,1765055443889,-1239.77,8.219e-05,2]
[396569750,1765055443898,-917.68,8.219e-05,2]
[396569752,1765055443907,-1117.88,8.219e-05,2]
[396569754,1765055443917,-210.71067119,8.219e-05,2]
[396569756,1765055443926,-500.0,8.219e-05,2]
[396569758,1765055443936,-500.0,8.219e-05,2]
[396569760,1765055443945,-500.0,8.219e-05,2]
[396569762,1765055443954,-500.0,8.219e-05,2]
[396569764,1765055443963,-500.0,8.219e-05,2]
[396569766,1765055443973,-500.0,8.219e-05,2]
[396569768,1765055443982,-500.0,8.219e-05,2]
[396569770,1765055443996,-603.57,8.219e-05,2]
[396569772,1765055444006,-172.35435102,8.219e-05,2]
[396569774,1765055444015,-818.06,8.219e-05,2]
[396569776,1765055444025,-500.0,8.219e-05,2]
[396569778,1765055444034,-500.0,8.219e-05,2]
[396569780,1765055444044,-500.0,8.219e-05,2]
[396569782,1765055444053,-5292.83,8.219e-05,2]
[396569784,1765055444064,-500.0,8.219e-05,2]
[396569786,1765055444074,-500.0,8.219e-05,2]
[396569788,1765055444083,-256.00853438,8.219e-05,2]
[396569790,1765055444093,-1365.26,8.219e-05,2]
[396569792,1765055444102,-500.0,8.219e-05,2]
[396569794,1765055444111,-500.0,8.219e-05,2]
[396569796,1765055444121,-500.0,8.219e-05,2]
[396569798,1765055444130,-500.0,8.219e-05,2]
[396569800,1765055444140,-1714.1,8.219e-05,2]
[396569802,1765055444150,-500.0,8.219e-05,2]
[396569804,1765055444159,-500.0,8.219e-05,2]
[396569806,1765055444169,-500.0,8.219e-05,2]
[396569808,1765055444178,-500.0,8.219e-05,2]
[396569810,1765055444188,-500.0,8.219e-05,2]
[396569812,1765055444198,-500.0,8.219e-05,2]
[396569814,1765055444208,-500.0,8.219e-05,2]
[396569816,1765055444218,-500.0,8.219e-05,2]
[396569818,1765055444228,-500.0,8.219e-05,2]
[396569820,1765055444238,-500.0,8.219e-05,2]
[396569822,1765055444248,-500.0,8.219e-05,2]
[396569824,1765055444258,-1389.93,8.219e-05,2]
[396569826,1765055444269,-500.0,8.219e-05,2]
[396569828,1765055444282,-500.0,8.219e-05,2]
[396569830,1765055444291,-500.0,8.219e-05,2]
[396569832,1765055444302,-856.7,8.219e-05,2]
[396569834,1765055444312,-1005.66,8.219e-05,2]
[396569836,1765055444322,-500.0,8.219e-05,2]
[396569838,1765055444331,-1864.45,8.219e-05,2]
[396569840,1765055444340,-500.0,8.219e-05,2]
[396569842,1765055444350,-500.0,8.219e-05,2]
[396569844,1765055444362,-500.0,8.219e-05,2]
[396569846,1765055444372,-10457.24,8.219e-05,2]
[396569848,1765055444381,-500.0,8.219e-05,2]
[396569850,1765055444391,-700.33,8.219e-05,2]
[396569852,1765055444402,-744.13,8.219e-05,2]
[396569854,1765055444411,-3298.89,8.219e-05,2]
[396569856,1765055444420,-500.0,8.219e-05,2]
[396569858,1765055444430,-500.0,8.219e-05,2]
[396569860,1765055444439,-648.8569995,8.219e-05,2]
[396569862,1765055444448,-6067.67,8.219e-05,2]
[396569864,1765055444458,-2716.35,8.219e-05,2]
[396569866,1765055444467,-668.05,8.219e-05,2]
[396569868,1765055444477,-500.0,8.219e-05,2]
[396569870,1765055444488,-500.0,8.219e-05,2]
[396569872,1765055444497,-474.61142357,8.219e-05,2]
[396569874,1765055444506,-500.0,8.219e-05,2]
[396569876,1765055444515,-500.0,8.219e-05,2]
[396569878,1765055444525,-500.0,8.219e-05,2]
[396569879,1765055444534,-838.73,8.219e-05,2]
[396569880,1765055444543,-2494.95,8.219e-05,2]
[396569881,1765055444552,-1024.15,8.219e-05,2]
[396569882,1765055444562,-625.04240738,8.219e-05,2]
[396569883,1765055444571,-500.0,8.219e-05,2]
[396569884,1765055444580,-500.0,8.219e-05,2]
[396569885,1765055444589,-500.0,8.219e-05,2]
[396569887,1765055444601,-1269.83,8.219e-05,2]
[396569888,1765055444610,-16529.87,8.219e-05,2]
[396569889,1765055444619,-1862.02,8.219e-05,2]
[396569890,1765055444629,-2328.26,8.219e-05,2]
[396569891,1765055444638,-500.0,8.219e-05,2]
[396569892,1765055444648,-918.0,8.219e-05,2]
[396569894,1765055444658,-737.17,8.219e-05,2]
[396569896,1765055444667,-500.0,8.219e-05,2]
[396569898,1765055444677,-779.54,8.219e-05,2]
[396569900,1765055444687,-500.0,8.219e-05,2]
[396569902,1765055444697,-1988.47,8.219e-05,2]
[396569904,1765055444707,-1129.49,8.219e-05,2]
[396569906,1765055444717,-500.0,8.219e-05,2]
[396569908,1765055444727,-500.0,8.219e-05,2]
[396569910,1765055444736,-500.0,8.219e-05,2]
[396569912,1765055444745,-500.0,8.219e-05,2]
[396569914,1765055444754,-5637.04,8.219e-05,2]
[396569916,1765055444764,-1467.71,8.219e-05,2]
[396569918,1765055444773,-500.0,8.219e-05,2]
[396569920,1765055444783,-1905.71,8.219e-05,2]
[396569922,1765055444792,-580.49,8.219e-05,2]
[396569925,1765055444802,-500.0,8.219e-05,2]
[396569927,1765055444812,-1643.1,8.219e-05,2]
[396569929,1765055444821,-500.0,8.219e-05,2]
[396569931,1765055444830,-500.0,8.219e-05,2]
[396569933,1765055444839,-1642.05,8.219e-05,2]
[396569935,1765055444849,-4868.3,8.219e-05,2]
[396569937,1765055444859,-554.1,8.219e-05,2]
[396569939,1765055444868,-529.07,8.219e-05,2]
[396569941,1765055444877,-535.26,8.219e-05,2]
[396569943,1765055444886,-2324.98,8.219e-05,2]
[396569945,1765055444896,-2845.62,8.219e-05,2]
[396569947,1765055444906,-1820.35,8.219e-05,2]
[396569949,1765055444915,-500.0,8.219e-05,2]
[396569951,1765055444925,-930.65,8.219e-05,2]
[396569953,1765055444934,-500.0,8.219e-05,2]
[396569955,1765055444943,-1986.35,8.219e-05,2]
[396569957,1765055444952,-500.0,8.219e-05,2]
[396569959,1765055444963,-973.74,8.219e-05,2]
[396569961,1765055444974,-500.0,8.219e-05,2]
[396569963,1765055444983,-500.0,8.219e-05,2]
[396569965,1765055444993,-500.0,8.219e-05,2]
[396569967,1765055445004,-500.0,8.219e-05,2]
[396569969,1765055445016,-500.0,8.219e-05,2]
[396569971,1765055445026,-13792.0,8.219e-05,2]
[396569973,1765055445035,-572.55,8.219e-05,2]
[396569975,1765055445045,-944.7,8.219e-05,2]
[396569977,1765055445054,-913.76,8.219e-05,2]
[396569979,1765055445063,-569.72541422,8.219e-05,2]
[396569980,1765055445073,-500.0,8.219e-05,2]
[396569983,1765055445083,-500.0,8.219e-05,2]
[396569985,1765055445092,-4391.67,8.219e-05,2]
[396569987,1765055445102,-500.0,8.219e-05,2]
[396569989,1765055445111,-554.3154017,8.219e-05,2]
[396569991,1765055445120,-500.0,8.219e-05,2]
[396569993,1765055445129,-8223.72,8.219e-05,2]
[396569995,1765055445139,-1237.25,8.219e-05,2]
[396569997,1765055445148,-568.67,8.219e-05,2]
[396569999,1765055445157,-739.9,8.219e-05,2]
[396570001,1765055445167,-500.0,8.219e-05,2]
[396570003,1765055445176,-500.0,8.219e-05,2]
[396570005,1765055445186,-1297.41,8.219e-05,2]
[396570007,1765055445196,-588.13,8.219e-05,2]
[396570009,1765055445207,-500.0,8.219e-05,2]
[396570011,1765055445218,-3929.13,8.219e-05,2]
[396570013,1765055445228,-500.0,8.219e-05,2]
[396570015,1765055445238,-500.0,8.219e-05,2]
[396570017,1765055445247,-500.0,8.219e-05,2]
[396570019,1765055445256,-2132.75,8.219e-05,2]
[396570021,1765055445268,-500.0,8.219e-05,2]
[396570023,1765055445278,-500.0,8.219e-05,2]
[396570025,1765055445287,-500.0,8.219e-05,2]
[396570027,1765055445296,-1426.03,8.219e-05,2]
[396570029,1765055445307,-500.0,8.219e-05,2]
[396570030,1765055445316,-500.0,8.219e-05,2]
[396570033,1765055445326,-500.0,8.219e-05,2]
[396570035,1765055445335,-1307.88,8.219e-05,2]
[396570037,1765055445348,-308.79221395,8.219e-05,2]
[396570038,1765055445357,-500.0,8.219e-05,2]
[396570041,1765055445368,-818.51,8.219e-05,2]
[396570043,1765055445377,-500.0,8.219e-05,2]
[396570045,1765055445387,-916.53,8.219e-05,2]
[396570046,1765055445396,-500.0,8.219e-05,2]
[396570047,1765055445406,-500.0,8.219e-05,2]
[396570049,1765055445416,-781.49,8.219e-05,2]
[396570051,1765055445425,-1811.46,8.219e-05,2]
[396570053,1765055445435,-9712.73,8.219e-05,2]
[396570055,1765055445445,-500.0,8.219e-05,2]
[396570057,1765055445455,-500.0,8.219e-05,2]
[396570059,1765055445465,-500.0,8.219e-05,2]
[396570061,1765055445474,-3251.18,8.219e-05,2]
[396570063,1765055445484,-500.0,8.219e-05,2]
[396570065,1765055445494,-500.0,8.219e-05,2]
[396570067,1765055445503,-773.21,8.219e-05,2]
[396570069,1765055445513,-500.0,8.219e-05,2]
[396570071,1765055445522,-1381.51,8.219e-05,2]
[396570073,1765055445531,-500.0,8.219e-05,2]
[396570075,1765055445541,-576.69,8.219e-05,2]
[396570077,1765055445551,-500.0,8.219e-05,2]
[396570080,1765055445563,-500.0,8.219e-05,2]
[396570082,1765055445572,-3206.49,8.219e-05,2]
[396570084,1765055445581,-500.0,8.219e-05,2]
[396570086,1765055445591,-882.67,8.219e-05,2]
[396570088,1765055445601,-1425.62,8.219e-05,2]
[396570090,1765055445610,-612.61,8.219e-05,2]
[396570092,1765055445619,-500.0,8.219e-05,2]
[396570101,1765055445700,-500.0,8.219e-05,2]
[396570103,1765055445709,-516.26,8.219e-05,2]
[396570105,1765055445719,-500.0,8.219e-05,2]
[396570107,1765055445728,-500.0,8.219e-05,2]
[396570109,1765055445738,-1999.26,8.219e-05,2]
[396570111,1765055445747,-2449.06,8.219e-05,2]
[396570113,1765055445756,-500.0,8.219e-05,2]
[396570115,1765055445766,-500.0,8.219e-05,2]
[396570118,1765055445775,-577.58,8.219e-05,2]
[396570120,1765055445784,-840.05,8.219e-05,2]
[396570121,1765055445794,-215.51903692,8.219e-05,2]
[396570124,1765055445805,-500.0,8.219e-05,2]
[396570126,1765055445815,-500.0,8.219e-05,2]
[396570127,1765055445824,-1548.31,8.219e-05,2]
[396570130,1765055445833,-817.77,8.219e-05,2]
[396570131,1765055445842,-592.6,8.219e-05,2]
[396570133,1765055445851,-1975.94,8.219e-05,2]
[396570136,1765055445861,-500.0,8.219e-05,2]
[396570138,1765055445870,-500.0,8.219e-05,2]
[396570140,1765055445884,-1955.06,8.219e-05,2]
[396570142,1765055445894,-500.0,8.219e-05,2]
[396570144,1765055445903,-500.0,8.219e-05,2]
[396570146,1765055445913,-500.0,8.219e-05,2]
[396570148,1765055445922,-1723.48,8.219e-05,2]
[396570150,1765055445931,-500.0,8.219e-05,2]
[396570152,1765055445940,-500.0,8.219e-05,2]
[396570154,1765055445950,-500.0,8.219e-05,2]
[396570156,1765055445959,-500.0,8.219e-05,2]
[396570158,1765055445968,-3378.67547201,8.219e-05,2]
[396570160,1765055445978,-500.0,8.219e-05,2]
[396570162,1765055445986,-1499.26,8.219e-05,2]
[396570164,1765055445995,-500.0,8.219e-05,2]
[396570166,1765055446004,-1092.83,8.219e-05,2]
[396570167,1765055446013,-500.0,8.219e-05,2]
[396570169,1765055446022,-4777.56,8.219e-05,2]
[396570171,1765055446031,-500.0,8.219e-05,2]
[396570173,1765055446040,-500.0,8.219e-05,2]
[396570176,1765055446051,-500.0,8.219e-05,2]
[396570178,1765055446061,-1555.33,8.219e-05,2]
[396570180,1765055446070,-5441.22,8.219e-05,2]
[396570182,1765055446079,-5109.81,8.219e-05,2]
[396570184,1765055446089,-500.0,8.219e-05,2]
[396570186,1765055446098,-500.0,8.219e-05,2]
[396570188,1765055446107,-7856.3,8.219e-05,2]
[396570190,1765055446117,-500.0,8.219e-05,2]
[396570192,1765055446126,-1643.96,8.219e-05,2]
[396570194,1765055446135,-500.0,8.219e-05,2]
[396570196,1765055446144,-500.0,8.219e-05,2]
[396570198,1765055446153,-500.0,8.219e-05,2]
[396570200,1765055446162,-636.86,8.219e-05,2]
[396570202,1765055446171,-291.96891462,8.219e-05,2]
[396570203,1765055446181,-1411.91,8.219e-05,2]
[396570205,1765055446190,-3514.61,8.219e-05,2]
[396570208,1765055446199,-500.0,8.219e-05,2]
[396570210,1765055446209,-500.0,8.219e-05,2]
[396570212,1765055446218,-500.0,8.219e-05,2]
[396570213,1765055446227,-1188.22,8.219e-05,2]
[396570215,1765055446237,-793.19,8.219e-05,2]
[396570217,1765055446246,-1009.34,8.219e-05,2]
[396570219,1765055446256,-500.0,8.219e-05,2]
[396570221,1765055446265,-500.0,8.219e-05,2]
[396570223,1765055446275,-3649.29,8.219e-05,2]
[396570225,1765055446285,-500.0,8.219e-05,2]
[396570227,1765055446294,-915.41,8.219e-05,2]
[396570229,1765055446303,-500.0,8.219e-05,2]
[396570230,1765055446313,-1140.73,8.219e-05,2]
[396570232,1765055446323,-519.16,8.219e-05,2]
[396570235,1765055446332,-631.62,8.219e-05,2]
[396570237,1765055446341,-3657.33,8.219e-05,2]
[396570239,1765055446350,-500.0,8.219e-05,2]
[396570241,1765055446361,-518.47813572,8.219e-05,2]
[396570243,1765055446370,-500.0,8.219e-05,2]
[396570245,1765055446379,-500.0,8.219e-05,2]
[396570247,1765055446388,-500.0,8.219e-05,2]
[396570249,1765055446398,-4312.87,8.219e-05,2]
[396570251,1765055446407,-500.0,8.219e-05,2]
[396570252,1765055446415,-500.0,8.219e-05,2]
[396570254,1765055446424,-1926.16,8.219e-05,2]
[396570256,1765055446434,-500.0,8.219e-05,2]
[396570258,1765055446443,-702.46,8.219e-05,2]
[396570260,1765055446453,-500.0,8.219e-05,2]
[396570262,1765055446462,-569.98,8.219e-05,2]
[396570264,1765055446472,-26957.27,8.219e-05,2]
[396570266,1765055446482,-500.0,8.219e-05,2]
[396570268,1765055446491,-206.62720931,8.219e-05,2]
[396570270,1765055446500,-500.0,8.219e-05,2]
[396570272,1765055446509,-500.0,8.219e-05,2]
[396570275,1765055446519,-500.0,8.219e-05,2]
[396570276,1765055446528,-500.0,8.219e-05,2]
[396570277,1765055446537,-3360.73,8.219e-05,2]
[396570278,1765055446547,-500.0,8.219e-05,2]
[396570279,1765055446556,-500.0,8.219e-05,2]
[396570280,1765055446566,-9009.87,8.219e-05,2]
[396570281,1765055446575,-500.0,8.219e-05,2]
[396570282,1765055446586,-500.0,8.219e-05,2]
[396570283,1765055446596,-1298.1,8.219e-05,2]
[396570284,1765055446605,-500.0,8.219e-05,2]
[396570285,1765055446614,-500.0,8.219e-05,2]
[396570286,1765055446624,-1499.5,8.219e-05,2]
[396570287,1765055446633,-500.0,8.219e-05,2]
[396570288,1765055446642,-1522.79,8.219e-05,2]
[396570289,1765055446651,-6650.71,8.219e-05,2]